bitfinex-derivatives/quotes_SOLF0:USTF0_20250609
["timestamp","ask_amount","ask_price","bid_price","bid_amount"]
[1749482918267,15.4145776,155.19,155.18,0.04228144]
[1749482919262,11.70989983,155.19,155.18,0.04228144]
[1749482925782,5.26929983,155.19,155.18,0.04228144]
[1749482926174,5.26929983,155.19,155.18,6.48328144]
[1749482926576,14.0,155.21,155.18,0.04228144]
[1749482926773,5.2650179,155.2,155.19,6.4406]
[1749482927481,0.04731809,155.22,155.21,6.4398]
[1749482927673,5.31188647,155.22,155.21,6.4398]
[1749482928275,5.31188647,155.22,155.19,6.4405]
[1749482928470,5.26456838,155.21,155.19,6.4405]
[1749482928675,5.26456838,155.2,155.19,6.4405]
[1749482929877,0.04731809,155.22,155.21,6.4398]
[1749482930075,5.32801379,155.22,155.21,6.4398]
[1749482930269,5.32801379,155.22,155.19,6.4404]
[1749482930472,5.2806957,155.21,155.18,0.04228144]
[1749482930778,5.2806957,155.2,155.18,0.04228144]
[1749482930972,0.04731809,155.22,155.2,6.4399]
[1749482931174,5.28080308,155.21,155.18,0.04228144]
[1749482931372,5.28080308,155.2,155.18,0.04228144]
[1749482931570,0.04731809,155.22,155.18,0.04228144]
[1749482931782,5.2806392,155.21,155.18,0.04228144]
[1749482932082,5.2806392,155.2,155.18,0.04228144]
[1749482932380,0.04731809,155.22,155.21,6.4398]
[1749482932582,5.32796738,155.22,155.21,6.4398]
[1749482938791,5.32796738,155.22,155.19,6.4405]
[1749482938989,5.32796738,155.22,155.18,0.04228144]
[1749482938990,5.28064929,155.21,155.18,0.04228144]
[1749482939288,5.27745235,155.2,155.19,6.4403]
[1749482939588,0.04731809,155.22,155.19,5.79148646]
[1749482939786,0.04731809,155.22,155.21,6.4398]
[1749482939988,5.32368176,155.22,155.21,6.4398]
[1749482940389,5.32368176,155.22,155.18,0.04228144]
[1749482940588,0.04731809,155.22,155.18,5.8337679]
[1749482940783,6.01508547,155.28,155.21,5.79148646]
[1749482940993,6.01508547,155.35,155.26,5.79148646]
[1749482941295,6.4336,155.36,155.32,5.79148646]
[1749482941485,6.01508547,155.37,155.31,32.66]
[1749482941686,6.434,155.35,155.32,32.70776566]
[1749482941887,18.27837193,155.38,155.32,0.04199449]
[1749482942093,0.04300467,155.35,155.32,0.04199449]
[1749482942287,5.79148646,155.34,155.32,0.04199449]
[1749482942993,6.4348,155.33,155.32,0.04199449]
[1749482943188,5.79148646,155.34,155.29,32.66]
[1749482943793,6.4355,155.32,155.29,32.66]
[1749482944191,6.4355,155.32,155.29,32.70593619]
[1749482944794,6.4356,155.31,155.29,32.70593619]
[1749482945490,5.83624025,155.32,155.29,0.04593619]
[1749482945893,0.04475379,155.32,155.29,0.04593619]
[1749482946396,6.4359,155.31,155.29,0.04593619]
[1749482946991,0.04475379,155.32,155.29,0.04593619]
[1749482947696,6.48015379,155.32,155.29,0.04593619]
[1749482949299,5.79148646,155.31,155.29,0.04593619]
[1749482949993,6.436,155.3,155.29,0.04593619]
[1749482952098,12.22748646,155.3,155.29,0.04593619]
[1749482952795,6.4373,155.27,155.26,32.66]
[1749482953098,12.22878646,155.27,155.19,7.92738646]
[1749482953291,12.22878646,155.27,155.23,32.66]
[1749482953799,12.22878646,155.27,155.23,32.70400042]
[1749482953800,12.27604003,155.27,155.23,32.70400042]
[1749482953999,6.4377,155.26,155.23,32.70400042]
[1749482954297,6.4377,155.26,155.23,39.14270042]
[1749482954497,5.83874003,155.27,155.23,32.70400042]
[1749482955700,12.27604003,155.27,155.24,6.4382]
[1749482956491,12.22968646,155.25,155.23,0.04400042]
[1749482957599,12.22968646,155.25,155.23,6.48290042]
[1749482958001,12.22968646,155.25,155.23,0.04400042]
[1749482959601,6.4385,155.24,155.23,0.04400042]
[1749482959794,5.79148646,155.25,155.18,32.66]
[1749482959990,5.79148646,155.21,155.18,32.66]
[1749482960201,5.79148646,155.21,155.2,6.4402]
[1749482960800,5.79148646,155.21,155.19,6.48436744]
[1749482962205,6.48538647,155.22,155.2,6.4401]
[1749482962406,5.79148646,155.21,155.2,6.4401]
[1749482963106,0.04578647,155.22,155.2,6.4401]
[1749482963403,5.83727293,155.22,155.2,6.4401]
[1749482963803,5.83727293,155.22,155.19,0.04396744]
[1749482964101,5.79148646,155.2,155.19,0.04396744]
[1749482964302,12.23168646,155.2,155.19,0.04396744]
[1749482964800,5.79148646,155.2,155.19,0.04396744]
[1749482967599,12.23168646,155.2,155.19,0.04396744]
[1749482973407,5.79148646,155.2,155.19,0.04396744]
[1749482973609,5.79148646,155.2,155.19,6.48456744]
[1749482973801,0.04578647,155.22,155.19,0.04396744]
[1749482973996,0.04578647,155.22,155.19,32.68396744]
[1749482974200,0.04578647,155.22,155.2,6.4399]
[1749482974407,0.04578647,155.22,155.19,32.68396744]
[1749482974795,0.04578647,155.22,155.21,6.4398]
[1749482993825,5.22457544,155.27,155.25,6.4377]
[1749482994728,0.04221122,155.28,155.24,0.04144606]
[1749482995819,0.04221122,155.28,155.27,6.4373]
[1749483000726,0.04221122,155.28,155.27,39.0373]
[1749483001529,0.04221122,155.28,155.27,6.4373]
[1749483001841,6.47911122,155.28,155.26,6.4376]
[1749483002027,0.04221122,155.28,155.25,32.6]
[1749483002535,0.04221122,155.28,155.27,6.4373]
[1749483007737,0.04221122,155.28,155.26,6.4375]
[1749483007931,0.04221122,155.28,155.25,32.6]
[1749483008432,0.04221122,155.28,155.26,6.4373]
[1749483008633,6.47911122,155.28,155.26,6.4373]
[1749483009936,0.04221122,155.28,155.25,32.6]
[1749483011032,6.4376,155.27,155.25,39.0379]
[1749483011232,0.04221122,155.28,155.25,32.6]
[1749483011426,5.28246625,155.28,155.25,32.6]
[1749483012336,0.04221122,155.28,155.25,32.6]
[1749483012637,6.47931122,155.28,155.25,39.0377]
[1749483012932,0.04221122,155.28,155.25,32.6]
[1749483014742,0.04221122,155.28,155.27,6.4373]
[1749483017434,0.04221122,155.28,155.26,6.4375]
[1749483018036,6.47911122,155.28,155.26,6.4375]
[1749483018237,0.04221122,155.28,155.27,6.4373]
[1749483018738,5.28350457,155.28,155.25,32.6]
[1749483019147,0.04221122,155.28,155.25,32.6]
[1749483019446,0.04221122,155.28,155.27,6.4373]
[1749483019945,0.04221122,155.28,155.26,6.4375]
[1749483020147,0.04221122,155.28,155.25,32.6]
[1749483020742,0.04221122,155.28,155.26,6.4377]
[1749483021343,0.04221122,155.28,155.27,6.4373]
[1749483022340,0.04221122,155.28,155.25,32.6]
[1749483022539,6.4377,155.26,155.25,32.6]
[1749483022845,6.4377,155.26,155.24,0.04144606]
[1749483023145,6.4377,155.26,155.24,6.47974606]
[1749483024142,6.4381,155.25,155.24,0.04144606]
[1749483024449,5.25298504,155.27,155.24,0.04144606]
[1749483024643,5.25298504,155.26,155.24,0.04144606]
[1749483024943,6.4379,155.26,155.24,6.47994606]
[1749483025244,0.04221122,155.28,155.25,6.4378]
[1749483025245,6.4373,155.27,155.25,6.4378]
[1749483025751,0.04221122,155.28,155.24,0.04144606]
[1749483025952,5.24806926,155.27,155.24,0.04144606]
[1749483026144,0.04221122,155.28,155.24,0.04144606]
[1749483026346,5.24807265,155.27,155.24,0.04144606]
[1749483026651,6.4376,155.27,155.25,6.4381]
[1749483027148,0.04221122,155.28,155.24,0.04144606]
[1749483027343,5.24835482,155.27,155.24,0.04144606]
[1749483027543,0.04221122,155.28,155.24,0.04144606]
[1749483027745,11.68647775,155.27,155.24,6.47974606]
[1749483027952,6.4377,155.27,155.24,6.47974606]
[1749483028251,6.4377,155.26,155.24,6.47974606]
[1749483029652,6.4374,155.27,155.25,6.4381]
[1749483029854,5.24977513,155.26,155.25,6.4381]
[1749483030947,11.68747513,155.26,155.24,6.47974606]
[1749483031148,6.4377,155.26,155.24,6.47974606]
[1749483031353,0.04221122,155.28,155.24,6.47974606]
[1749483031547,11.68726746,155.27,155.25,6.438]
[1749483031748,5.24976746,155.26,155.25,6.438]
[1749483033549,6.4375,155.27,155.25,6.438]
[1749483034155,0.04221122,155.28,155.25,6.438]
[1749483034354,5.25078461,155.27,155.26,6.4376]
[1749483034658,5.25078461,155.27,155.26,39.0176]
[1749483034857,0.04221122,155.28,155.27,6.4373]
[1749483044962,5.26939249,155.32,155.31,6.4356]
[1749483046168,5.26939249,155.32,155.3,39.06059256]
[1749483046368,5.26939249,155.31,155.3,39.06059256]
[1749483046575,5.26939249,155.31,155.3,32.62479256]
[1749483046870,11.70499249,155.31,155.3,32.62479256]
[1749483047869,5.26939249,155.31,155.3,32.62479256]
[1749483049373,5.26939249,155.31,155.3,39.06079256]
[1749483049575,5.26939249,155.31,155.3,32.62479256]
[1749483049775,11.70499249,155.31,155.3,32.62479256]
[1749483050671,11.70499249,155.31,155.3,0.04479256]
[1749483052282,5.26939249,155.31,155.3,0.04479256]
[1749483052474,5.26939249,155.31,155.3,6.48079256]
[1749483052681,5.26939249,155.31,155.3,0.04479256]
[1749483053180,5.26939249,155.31,155.3,6.48079256]
[1749483059383,5.26939249,155.31,155.3,0.04479256]
[1749483060574,5.26939249,155.31,155.3,6.48079256]
[1749483061176,6.47918221,155.33,155.31,6.4356]
[1749483061383,8.96320592,155.32,155.31,6.4356]
[1749483061783,8.96320592,155.32,155.3,0.04479256]
[1749483061979,8.96320592,155.31,155.3,0.04479256]
[1749483063083,15.39880592,155.31,155.3,0.04479256]
[1749483063289,8.96320592,155.31,155.2,12.8798]
[1749483063487,10.13641684,155.28,155.24,3.69951684]
[1749483063783,10.13641684,155.28,155.26,6.4374]
[1749483063784,3.69951684,155.28,155.26,6.4374]
[1749483065488,10.13641684,155.28,155.26,6.4374]
[1749483065683,0.04592588,155.29,155.26,6.4374]
[1749483065879,3.74544272,155.29,155.27,6.4373]
[1749483066690,10.18204272,155.29,155.27,6.4373]
[1749483066985,0.04592588,155.29,155.28,10.13641684]
[1749483069290,0.04592588,155.29,155.28,6.4369]
[1749483070983,5.3075016,155.29,155.27,38.9771]
[1749483071188,0.04592588,155.29,155.27,32.54]
[1749483071389,0.04592588,155.29,155.28,6.4369]
[1749483071691,5.30688729,155.29,155.28,6.4369]
[1749483071879,0.04592588,155.29,155.28,6.4369]
[1749483073191,5.30753407,155.29,155.28,6.4369]
[1749483074285,5.30791201,155.29,155.28,6.4369]
[1749483075693,5.30791201,155.29,155.27,38.9771]
[1749483075894,0.04592588,155.29,155.27,38.9771]
[1749483076090,5.26446102,155.28,155.27,38.9771]
[1749483076985,11.70136102,155.28,155.26,6.4375]
[1749483077193,5.26603894,155.27,155.25,0.04955724]
[1749483077390,0.04592588,155.29,155.25,0.04955724]
[1749483077592,5.2671301,155.28,155.26,6.4377]
[1749483077888,6.48242588,155.29,155.26,6.4377]
[1749483078087,5.26714059,155.28,155.26,6.4377]
[1749483078289,6.48242588,155.29,155.26,6.4377]
[1749483078495,5.26721777,155.28,155.26,6.4377]
[1749483078688,5.26721777,155.27,155.26,6.4377]
[1749483080096,6.4369,155.28,155.26,6.4377]
[1749483080295,6.48252588,155.29,155.27,6.4372]
[1749483080495,5.26018815,155.28,155.27,6.4372]
[1749483082197,11.69718815,155.28,155.26,6.4375]
[1749483082399,5.26018815,155.27,155.25,0.04955724]
[1749483082594,5.7803905,155.28,155.25,0.04955724]
[1749483082595,5.26018815,155.26,155.25,0.04955724]
[1749483083801,11.69788815,155.26,155.25,0.04955724]
[1749483084197,5.26018815,155.26,155.25,0.04955724]
[1749483084594,5.26018815,155.26,155.25,6.48765724]
[1749483085190,2.23642588,155.29,155.28,6.4369]
[1749483085398,7.49072255,155.29,155.28,6.4369]
[1749483086701,7.49072255,155.29,155.27,6.4371]
[1749483086902,5.25429667,155.28,155.25,0.04955724]
[1749483087104,2.23642588,155.29,155.28,6.4369]
[1749483087402,7.49001869,155.29,155.28,6.4369]
[1749483088703,5.29951869,155.29,155.28,6.4369]
[1749483089805,0.04592588,155.29,155.28,6.4369]
[1749483090202,5.30520039,155.29,155.28,6.4369]
[1749483090503,0.04592588,155.29,155.28,6.4369]
[1749483090702,5.30682257,155.29,155.28,6.4369]
[1749483090900,0.04592588,155.29,155.28,6.4369]
[1749483091405,0.04592588,155.29,155.28,38.9569]
[1749483095305,0.04592588,155.29,155.28,42.65608061]
[1749483097309,40.46854362,155.38,155.28,36.21918061]
[1749483097507,8.96622662,155.35,155.31,3.69918061]
[1749483097708,8.96622662,155.34,155.32,6.435]
[1749483097906,5.26704601,155.33,155.32,6.435]
[1749483098308,8.96622662,155.33,155.31,0.04151945]
[1749483098505,3.69918061,155.33,155.31,0.04151945]
[1749483098707,5.26606271,155.32,155.31,0.04151945]
[1749483099808,5.26606271,155.32,155.31,6.47711945]
[1749483100307,5.26606271,155.32,155.31,0.04151945]
[1749483100504,8.96524332,155.32,155.31,0.04151945]
[1749483100709,5.26606271,155.32,155.31,0.04151945]
[1749483101109,5.26606271,155.32,155.31,6.47711945]
[1749483101311,5.26606271,155.32,155.31,0.04151945]
[1749483102318,3.69918061,155.33,155.31,0.04151945]
[1749483102807,3.69918061,155.33,155.31,6.47701945]
[1749483103006,3.69918061,155.33,155.31,0.04151945]
[1749483103206,3.69918061,155.33,155.32,6.4352]
[1749483103412,5.26918681,155.33,155.32,6.4352]
[1749483104010,0.04441034,155.34,155.33,6.4348]
[1749483104211,5.31287265,155.34,155.33,6.4348]
[1749483107816,0.04441034,155.34,155.33,6.4348]
[1749483111418,0.04441034,155.34,155.33,10.13398061]
[1749483116818,0.04441034,155.34,155.33,6.4348]
[1749483117019,0.04441034,155.34,155.32,38.8951]
[1749483118827,6.47891034,155.34,155.32,38.8951]
[1749483119228,6.4348,155.33,155.32,32.46]
[1749483119424,3.74359095,155.34,155.31,0.04151945]
[1749483119831,6.4352,155.32,155.31,0.04151945]
[1749483120033,0.04441034,155.34,155.31,0.04151945]
[1749483120428,11.74558483,155.34,155.32,6.4351]
[1749483120628,6.47901034,155.34,155.32,6.4351]
[1749483121033,0.04441034,155.34,155.33,6.4348]
[1749483128246,0.04441034,155.34,155.32,6.435]
[1749483128839,0.04441034,155.34,155.33,6.4348]
[1749483130848,9.01109463,155.34,155.31,0.04151945]
[1749483131047,8.96701868,155.33,155.31,0.04151945]
[1749483131235,3.69918061,155.32,155.27,32.46]
[1749483131549,3.69918061,155.3,155.27,32.46]
[1749483131844,3.69918061,155.31,155.28,6.4366]
[1749483132039,3.69918061,155.31,155.27,32.46]
[1749483132240,3.74570445,155.31,155.28,6.4368]
[1749483132449,5.26988759,155.3,155.27,32.50485948]
[1749483132749,0.04652384,155.31,155.3,6.436]
[1749483133049,5.31715715,155.31,155.28,3.69918061]
[1749483133251,0.04652384,155.31,155.29,6.4361]
[1749483133446,0.04652384,155.31,155.28,3.69918061]
[1749483133748,0.04652384,155.31,155.3,10.13518061]
[1749483133946,0.04652384,155.31,155.3,6.436]
[1749483135139,0.04652384,155.31,155.29,6.4364]
[1749483135339,0.04652384,155.31,155.28,3.69918061]
[1749483136045,0.04652384,155.31,155.3,6.436]
[1749483136248,0.04652384,155.31,155.3,10.13518061]
[1749483137244,0.04652384,155.31,155.3,6.436]
[1749483138454,5.30320549,155.31,155.3,6.436]
[1749483140047,0.04652384,155.31,155.3,6.436]
[1749483140852,5.308122,155.31,155.3,6.436]
[1749483141257,0.04652384,155.31,155.3,6.436]
[1749483142459,5.30976534,155.31,155.27,32.50485948]
[1749483142647,6.4368,155.29,155.27,32.50485948]
[1749483142953,5.26426563,155.28,155.27,0.04485948]
[1749483143357,11.70116563,155.28,155.27,0.04485948]
[1749483143952,11.70116563,155.28,155.24,403.18]
[1749483143953,11.70116563,155.28,155.25,6.4379]
[1749483144254,5.26426563,155.27,155.24,32.46]
[1749483144457,5.25944564,155.27,155.25,6.4377]
[1749483144660,5.24996462,155.27,155.24,32.46]
[1749483144852,5.29250493,155.27,155.24,32.50674311]
[1749483145157,0.04254031,155.27,155.24,32.50674311]
[1749483145357,0.04254031,155.27,155.26,6.4377]
[1749483145560,0.04254031,155.27,155.24,32.50674311]
[1749483145859,0.04254031,155.27,155.25,6.4379]
[1749483146061,0.04254031,155.27,155.24,0.04674311]
[1749483146360,5.78004988,155.25,155.2,6.44]
[1749483146557,5.78004988,155.23,155.17,32.44]
[1749483146854,5.78004988,155.21,155.17,38.8812]
[1749483147356,6.4402,155.2,155.17,38.8812]
[1749483147557,6.4402,155.2,155.18,6.441]
[1749483147753,5.82665498,155.21,155.18,6.441]
[1749483147961,5.82665498,155.21,155.17,32.44]
[1749483147962,0.0466051,155.21,155.17,38.22004988]
[1749483148155,0.0466051,155.21,155.2,6.4402]
[1749483148656,0.0466051,155.21,155.17,6.4411]
[1749483148954,5.82665498,155.21,155.11,32.44]
[1749483149153,5.78004988,155.17,155.11,32.44]
[1749483149355,0.04194503,155.16,155.11,32.44]
[1749483149754,0.04194503,155.16,155.13,6.4428]
[1749483149953,0.04194503,155.16,155.11,38.22004988]
[1749483150160,0.04194503,155.16,155.15,6.4423]
[1749483150962,0.04194503,155.16,155.15,38.9023]
[1749483152767,5.78004988,155.22,155.19,6.4403]
[1749483153069,5.78004988,155.22,155.15,38.24004988]
[1749483153261,2.2183,155.23,155.15,38.24004988]
[1749483153865,0.04678909,155.21,155.19,6.4402]
[1749483154168,0.04678909,155.21,155.17,0.04543883]
[1749483154367,5.78004988,155.19,155.17,0.04543883]
[1749483154861,5.78004988,155.19,155.12,32.46]
[1749483155060,5.78004988,155.19,155.14,6.4424]
[1749483155256,5.78004988,155.17,155.12,32.46]
[1749483155662,0.04811795,155.16,155.12,32.46]
[1749483157063,7.99834988,155.23,155.15,5.78004988]
[1749483157264,5.78004988,155.21,155.16,32.46]
[1749483157467,5.78004988,155.19,155.16,32.46]
[1749483157662,5.78004988,155.19,155.13,32.46]
[1749483157967,0.04828812,155.18,155.14,0.04429046]
[1749483158663,0.04828812,155.18,155.17,6.4414]
[1749483159866,0.04828812,155.18,155.17,38.9014]
[1749483161765,16.2183,155.23,155.22,6.4393]
[1749483161967,2.2183,155.23,155.22,6.4393]
[1749483163063,2.2183,155.23,155.21,0.04676352]
[1749483163064,0.04339883,155.24,155.23,6.4389]
[1749483166972,36.7501,155.31,155.29,6.4364]
[1749483167373,4.2901,155.31,155.29,6.4364]
[1749483167568,5.78004988,155.3,155.28,6.4367]
[1749483167775,5.78004988,155.3,155.25,32.46]
[1749483167975,5.78004988,155.28,155.26,0.04447931]
[1749483168576,5.78004988,155.28,155.26,6.48207931]
[1749483168878,5.78004988,155.28,155.26,0.04447931]
[1749483169875,0.04582054,155.29,155.28,6.4369]
[1749483170685,0.04582054,155.29,155.27,6.4371]
[1749483171883,0.04582054,155.29,155.28,6.4369]
[1749483172088,0.04582054,155.29,155.26,0.04447931]
[1749483172381,0.04582054,155.29,155.27,6.437]
[1749483173481,0.04582054,155.29,155.28,6.4369]
[1749483173685,6.48232054,155.29,155.26,0.04447931]
[1749483174180,6.48232054,155.29,155.26,6.48197931]
[1749483175382,6.48232054,155.29,155.27,6.4372]
[1749483175685,0.04582054,155.29,155.26,0.04447931]
[1749483176082,0.04582054,155.29,155.28,6.4369]
[1749483180389,5.78004988,155.34,155.32,6.4351]
[1749483180590,5.78004988,155.34,155.26,32.50447931]
[1749483180591,6.4348,155.33,155.26,32.46]
[1749483181287,0.04710494,155.31,155.28,0.04155028]
[1749483181988,0.04710494,155.31,155.3,6.436]
[1749483183280,0.04710494,155.31,155.28,6.47825028]
[1749483183489,5.82715482,155.31,155.28,0.04155028]
[1749483184790,6.4361,155.3,155.28,0.04155028]
[1749483185986,6.4364,155.29,155.28,0.04155028]
[1749483186892,6.4362,155.3,155.28,0.04155028]
[1749483188791,6.4364,155.29,155.28,0.04155028]
[1749483188991,5.82715482,155.31,155.28,0.04155028]
[1749483189393,6.4363,155.3,155.28,0.04155028]
[1749483190390,6.4364,155.29,155.28,0.04155028]
[1749483191294,12.21634988,155.3,155.28,0.04155028]
[1749483192092,6.4364,155.29,155.28,0.04155028]
[1749483193094,12.21624988,155.3,155.28,0.04155028]
[1749483193394,5.82715482,155.31,155.28,0.04155028]
[1749483193894,5.82715482,155.31,155.29,6.4364]
[1749483194194,5.82715482,155.31,155.28,0.04155028]
[1749483194896,5.78004988,155.29,155.28,0.04155028]
[1749483195097,12.21644988,155.29,155.28,0.04155028]
[1749483195489,5.78004988,155.29,155.25,6.4379]
[1749483195794,5.78004988,155.29,155.23,32.44]
[1749483196189,7.86954988,155.29,155.23,32.44]
[1749483196388,6.4371,155.28,155.25,6.4379]
[1749483196589,6.47977877,155.28,155.25,6.4379]
[1749483197395,0.04267877,155.28,155.24,6.48456011]
[1749483197698,5.78004988,155.27,155.24,0.04616011]
[1749483197896,6.4379,155.26,155.24,0.04616011]
[1749483198592,6.4381,155.25,155.24,0.04616011]
[1749483199092,14.04267877,155.28,155.24,0.04616011]
[1749483199787,20.47987877,155.28,155.25,6.4379]
[1749483200184,14.04267877,155.28,155.24,0.04616011]
[1749483200388,14.04267877,155.28,155.27,6.4373]
[1749483201992,0.04267877,155.28,155.27,6.4373]
[1749483204587,0.04267877,155.28,155.26,6.4375]
[1749483205200,0.04267877,155.28,155.27,6.4373]
[1749483206096,6.47957877,155.28,155.25,32.44]
[1749483206495,5.78004988,155.27,155.25,32.44]
[1749483206798,6.4377,155.26,155.24,6.48446011]
[1749483207202,5.78004988,155.27,155.24,0.04616011]
[1749483207402,10.9489418,155.27,155.25,6.4378]
[1749483207701,5.16889192,155.27,155.25,6.4378]
[1749483207907,8.71707877,155.28,155.25,6.4378]
[1749483208204,5.16988638,155.27,155.25,6.4378]
[1749483208503,0.04267877,155.28,155.24,0.04616011]
[1749483209003,0.04267877,155.28,155.27,6.4373]
[1749483209202,5.20538742,155.28,155.27,6.4373]
[1749483209406,0.04267877,155.28,155.27,6.4373]
[1749483209993,5.20524683,155.28,155.27,6.4373]
[1749483210197,5.20512291,155.28,155.27,6.4373]
[1749483212002,5.20512291,155.28,155.24,0.04616011]
[1749483212197,10.94249402,155.27,155.24,0.04616011]
[1749483212500,6.4379,155.26,155.24,0.04616011]
[1749483213902,2.17487877,155.28,155.24,0.04616011]
[1749483214096,5.16616909,155.27,155.24,0.04616011]
[1749483214298,5.16616909,155.26,155.24,0.04616011]
[1749483214500,2.17487877,155.28,155.24,0.04616011]
[1749483214698,5.1665816,155.27,155.24,0.04616011]
[1749483214901,5.1665816,155.26,155.24,0.04616011]
[1749483215101,2.17487877,155.28,155.24,0.04616011]
[1749483215297,5.1692733,155.27,155.24,0.04616011]
[1749483215503,5.1692733,155.26,155.24,0.04616011]
[1749483215709,6.4375,155.27,155.25,6.4378]
[1749483215904,5.16738519,155.26,155.24,0.04616011]
[1749483216104,2.17487877,155.28,155.24,0.04616011]
[1749483216306,5.16765529,155.27,155.24,6.48466011]
[1749483216506,5.16765529,155.26,155.24,6.48466011]
[1749483216709,2.17487877,155.28,155.24,6.48466011]
[1749483216911,11.58856852,155.27,155.24,6.48466011]
[1749483217105,5.15106852,155.26,155.24,6.48466011]
[1749483217306,6.4375,155.27,155.24,6.48466011]
[1749483217505,5.15081005,155.26,155.24,6.48466011]
[1749483217706,6.4375,155.27,155.24,6.48466011]
[1749483218006,5.16474331,155.26,155.24,6.48466011]
[1749483218202,6.4375,155.27,155.24,6.48466011]
[1749483218402,5.16455132,155.26,155.24,6.48466011]
[1749483218701,6.4375,155.27,155.24,6.48466011]
[1749483218899,5.19925825,155.26,155.24,6.48466011]
[1749483219118,6.4375,155.27,155.24,6.48466011]
[1749483219409,5.19914844,155.26,155.25,6.438]
[1749483220703,0.04267877,155.28,155.27,6.4373]
[1749483220904,5.20625585,155.28,155.27,6.4373]
[1749483221105,5.20625585,155.28,155.24,0.04616011]
[1749483221299,0.04267877,155.28,155.24,0.04616011]
[1749483221510,0.04267877,155.28,155.26,6.4373]
[1749483222011,0.04267877,155.28,155.24,0.04616011]
[1749483222211,0.04267877,155.28,155.27,6.4373]
[1749483222410,5.20662897,155.28,155.27,6.4373]
[1749483222612,0.04267877,155.28,155.27,6.4373]
[1749483223808,0.04267877,155.28,155.27,38.8773]
[1749483225307,0.04267877,155.28,155.27,32.44]
[1749483225507,0.04267877,155.28,155.24,0.04616011]
[1749483225711,6.47977877,155.28,155.24,32.48616011]
[1749483225911,6.47977877,155.28,155.25,6.4378]
[1749483226225,6.47977877,155.28,155.24,32.48616011]
[1749483226514,6.47977877,155.28,155.25,6.438]
[1749483227304,6.4375,155.27,155.24,38.92456011]
[1749483227509,5.82272865,155.28,155.24,32.48616011]
[1749483227714,5.17032593,155.27,155.24,0.04616011]
[1749483227907,5.82272865,155.28,155.24,0.04616011]
[1749483228308,5.17091791,155.27,155.24,0.04616011]
[1749483228510,5.82272865,155.28,155.25,6.4378]
[1749483228511,12.25972865,155.28,155.25,6.4378]
[1749483228709,5.17115776,155.27,155.25,6.4378]
[1749483229009,12.25972865,155.28,155.25,6.4378]
[1749483229210,5.17117956,155.27,155.25,6.4378]
[1749483229414,12.25972865,155.28,155.25,6.4378]
[1749483229621,11.60868139,155.27,155.25,6.4378]
[1749483229822,6.4373,155.27,155.25,6.4378]
[1749483231828,12.25982865,155.28,155.25,6.4378]
[1749483232028,5.17391521,155.27,155.25,6.4378]
[1749483232327,12.25982865,155.28,155.25,6.4378]
[1749483232527,5.17387772,155.27,155.25,6.4378]
[1749483232727,12.25982865,155.28,155.25,6.4378]
[1749483233021,5.17387772,155.27,155.26,6.4377]
[1749483233226,0.04267877,155.28,155.24,0.04616011]
[1749483233617,0.04267877,155.28,155.27,6.4373]
[1749483233825,5.21631414,155.28,155.27,6.4373]
[1749483236126,11.65321414,155.28,155.26,6.4376]
[1749483236429,5.17363537,155.27,155.24,0.04616011]
[1749483236731,5.82272865,155.28,155.24,0.04616011]
[1749483237025,5.17403681,155.27,155.24,0.04616011]
[1749483237224,5.17403681,155.26,155.24,0.04616011]
[1749483237421,5.82272865,155.28,155.24,0.04616011]
[1749483237619,11.61167088,155.27,155.24,6.48426011]
[1749483237828,5.17417088,155.26,155.24,6.48426011]
[1749483238027,6.4374,155.27,155.24,6.48426011]
[1749483238227,5.17422856,155.26,155.24,0.04616011]
[1749483238423,5.82272865,155.28,155.24,0.04616011]
[1749483238624,11.61172821,155.27,155.24,0.04616011]
[1749483238823,5.17422821,155.26,155.24,6.48426011]
[1749483239024,6.4375,155.27,155.24,6.48426011]
[1749483239231,5.17406915,155.26,155.24,6.48426011]
[1749483239428,6.4375,155.27,155.24,6.48426011]
[1749483239629,5.16618993,155.26,155.24,6.48446011]
[1749483239823,6.4375,155.27,155.24,6.48446011]
[1749483240129,5.15801361,155.26,155.24,6.48446011]
[1749483240322,6.4375,155.27,155.24,6.48446011]
[1749483240520,5.15794148,155.26,155.24,6.48446011]
[1749483240722,0.04267877,155.28,155.24,0.04616011]
[1749483240923,5.15753898,155.27,155.24,0.04616011]
[1749483241122,0.04267877,155.28,155.24,0.04616011]
[1749483241634,0.04267877,155.28,155.27,6.4373]
[1749483255343,0.04267877,155.28,155.26,6.4375]
[1749483255742,0.04267877,155.28,155.25,32.44]
[1749483256747,0.04267877,155.28,155.26,6.4376]